[Event "Late-Titled-Tuesday-Blitz-January-23-2024"]
[Site "Chess.com"]
[Date "2024.01.23"]
[Round "7"]
[White "Actuary44"]
[Black "jamengrand"]
[Result "1-0"]
[WhiteElo "2483"]
[BlackElo "2268"]
[TimeControl "180+1"]
[EndTime "15:16:41 PST"]
[Termination "Actuary44 won by resignation"]

1. e4 {[%clk 0:03:00.9]} 1... e5 {[%clk 0:03:00.1]} 2. Nf3 {[%clk 0:03:00.9]}
2... Nc6 {[%clk 0:03:00.5]} 3. Bb5 {[%clk 0:03:01.1]} 3... a6 {[%clk 0:03:01]}
4. Ba4 {[%clk 0:03:01.5]} 4... Nf6 {[%clk 0:03:01.4]} 5. d3 {[%clk 0:03:02]}
5... b5 {[%clk 0:03:01]} 6. Bb3 {[%clk 0:03:02]} 6... Bc5 {[%clk 0:03:01.6]} 7.
O-O {[%clk 0:03:02]} 7... d6 {[%clk 0:03:01.9]} 8. h3 {[%clk 0:03:01.8]} 8... h6
{[%clk 0:03:02]} 9. Nc3 {[%clk 0:03:01.7]} 9... Ne7 {[%clk 0:03:01.9]} 10. Ne2
{[%clk 0:03:01.3]} 10... Ng6 {[%clk 0:03:01.4]} 11. Ng3 {[%clk 0:02:58.8]} 11...
Ba7 {[%clk 0:03:01.2]} 12. a4 {[%clk 0:02:57.4]} 12... b4 {[%clk 0:03:00.8]} 13.
d4 {[%clk 0:02:48]} 13... Bb7 {[%clk 0:03:00.8]} 14. Re1 {[%clk 0:02:33.8]}
14... O-O {[%clk 0:02:59]} 15. d5 {[%clk 0:02:27.8]} 15... c6 {[%clk 0:02:55.7]}
16. Nf5 {[%clk 0:02:24.6]} 16... cxd5 {[%clk 0:02:54.7]} 17. Bxd5 {[%clk
0:02:20.8]} 17... Nxd5 {[%clk 0:02:50.2]} 18. exd5 {[%clk 0:02:21.7]} 18... Qf6
{[%clk 0:02:50.3]} 19. Qd3 {[%clk 0:02:16.8]} 19... e4 {[%clk 0:02:38.5]} 20.
Qxe4 {[%clk 0:02:12.4]} 20... Rae8 {[%clk 0:02:37.7]} 21. Qg4 {[%clk 0:02:03.2]}
21... Rxe1+ {[%clk 0:02:29.6]} 22. Nxe1 {[%clk 0:02:04.1]} 22... Bc8 {[%clk
0:02:24.4]} 23. Nxh6+ {[%clk 0:01:32]} 23... gxh6 {[%clk 0:02:23.9]} 24. Qg3
{[%clk 0:01:28.7]} 24... Kh7 {[%clk 0:02:16.8]} 25. Nd3 {[%clk 0:01:25.4]} 25...
Rg8 {[%clk 0:02:10.4]} 26. Qh2 {[%clk 0:01:06.1]} 26... Nh4 {[%clk 0:01:54.7]}
27. Kf1 {[%clk 0:00:46.9]} 27... Rxg2 {[%clk 0:01:41]} 28. Qf4 {[%clk
0:00:46.9]} 28... Qxf4 {[%clk 0:01:33.7]} 29. Bxf4 {[%clk 0:00:47.8]} 29... Bxh3
{[%clk 0:01:33.5]} 30. Ke2 {[%clk 0:00:48]} 30... Bg4+ {[%clk 0:01:30.4]} 31.
Kf1 {[%clk 0:00:40.2]} 31... Bf5 {[%clk 0:01:30.1]} 32. Bg3 {[%clk 0:00:30.6]}
32... Bh3 {[%clk 0:01:19.7]} 33. Ke2 {[%clk 0:00:20.1]} 33... Nf5 {[%clk
0:01:19.9]} 34. Bf4 {[%clk 0:00:13.5]} 34... Nd4+ {[%clk 0:01:14.7]} 35. Kd2
{[%clk 0:00:10.8]} 35... Nf5 {[%clk 0:01:04.3]} 36. Rh1 {[%clk 0:00:08.7]} 36...
Bg4 {[%clk 0:00:59]} 37. Ke1 {[%clk 0:00:05.3]} 37... Bf3 {[%clk 0:00:53.5]} 38.
Rh3 {[%clk 0:00:03.9]} 38... Bxd5 {[%clk 0:00:52.9]} 39. Nxb4 {[%clk 0:00:03.7]}
39... Be6 {[%clk 0:00:49.2]} 40. Nxa6 {[%clk 0:00:02.4]} 40... Rg1+ {[%clk
0:00:47.5]} 41. Kd2 {[%clk 0:00:02]} 41... Bxf2 {[%clk 0:00:43.9]} 42. Nc7
{[%clk 0:00:02.3]} 42... Be1+ {[%clk 0:00:31.4]} 43. Kd3 {[%clk 0:00:02]} 43...
Bd7 {[%clk 0:00:28.3]} 44. a5 {[%clk 0:00:02.1]} 44... d5 {[%clk 0:00:20.6]} 45.
Nxd5 {[%clk 0:00:01.8]} 45... Rg2 {[%clk 0:00:14.3]} 46. Nf6+ {[%clk 0:00:01.2]}
46... Kg6 {[%clk 0:00:13.7]} 47. Nxd7 {[%clk 0:00:02.1]} 47... Bxa5 {[%clk
0:00:11.7]} 48. Ne5+ {[%clk 0:00:03]} 48... Kf6 {[%clk 0:00:11]} 49. Ke4 {[%clk
0:00:03.5]} 49... Re2+ {[%clk 0:00:10.5]} 50. Kd3 {[%clk 0:00:04]} 50... Re1
{[%clk 0:00:10.1]} 51. Ng4+ {[%clk 0:00:04.4]} 51... Ke6 {[%clk 0:00:10.3]} 52.
Nxh6 {[%clk 0:00:04.8]} 52... Nd6 {[%clk 0:00:10]} 53. Bxd6 {[%clk 0:00:04.6]}
53... Kxd6 {[%clk 0:00:10.4]} 54. Nxf7+ {[%clk 0:00:05.3]} 54... Kc5 {[%clk
0:00:10.6]} 55. Ng5 {[%clk 0:00:06.2]} 55... Re5 {[%clk 0:00:09.5]} 56. Ne4+
{[%clk 0:00:07.1]} 56... Kd5 {[%clk 0:00:09.6]} 57. Re3 {[%clk 0:00:07.2]} 57...
Bb6 {[%clk 0:00:08.8]} 58. Nc3+ {[%clk 0:00:06.6]} 58... Ke6 {[%clk 0:00:09.2]}
59. Rxe5+ {[%clk 0:00:07.2]} 59... Kxe5 {[%clk 0:00:10.1]} 60. Kc4 {[%clk
0:00:07.8]} 60... Kd6 {[%clk 0:00:10.4]} 61. Nb5+ {[%clk 0:00:07.7]} 61... Kd7
{[%clk 0:00:10.3]} 62. Nd4 {[%clk 0:00:08.2]} 62... Kc7 {[%clk 0:00:08.9]} 63.
Kd5 {[%clk 0:00:08.3]} 63... Ba5 {[%clk 0:00:08.7]} 64. c3 {[%clk 0:00:08.6]}
64... Bb6 {[%clk 0:00:08.9]} 65. b4 {[%clk 0:00:08.9]} 65... Ba7 {[%clk
0:00:08.9]} 66. c4 {[%clk 0:00:09.1]} 66... Bb8 {[%clk 0:00:08.7]} 67. c5 {[%clk
0:00:08.9]} 67... Kb7 {[%clk 0:00:07.4]} 68. b5 {[%clk 0:00:09.1]} 68... Bc7
{[%clk 0:00:07.6]} 69. Ne6 {[%clk 0:00:09.1]} 69... Ba5 {[%clk 0:00:07]} 70. Nf4
{[%clk 0:00:07.4]} 70... Bb4 {[%clk 0:00:06.1]} 71. Nd3 {[%clk 0:00:07.6]} 71...
Ba3 {[%clk 0:00:05.7]} 72. Kc4 {[%clk 0:00:07.1]} 72... Kc7 {[%clk 0:00:04.4]}
73. Nb4 {[%clk 0:00:06.8]} 73... Bc1 {[%clk 0:00:04.1]} 74. Nd5+ {[%clk
0:00:07.2]} 74... Kb7 {[%clk 0:00:04.6]} 75. c6+ {[%clk 0:00:07.8]} 75... Kb8
{[%clk 0:00:05.1]} 76. b6 {[%clk 0:00:07.7]} 76... Bf4 {[%clk 0:00:05.2]} 77.
Nxf4 {[%clk 0:00:07.1]} 77... Kc8 {[%clk 0:00:05.6]} 78. Nd5 {[%clk 0:00:07.7]}
78... Kb8 {[%clk 0:00:06.2]} 79. Kb5 {[%clk 0:00:08.3]} 79... Kc8 {[%clk
0:00:06.7]} 80. Nb4 {[%clk 0:00:08.6]} 80... Kb8 {[%clk 0:00:07.6]} 81. Ka6
{[%clk 0:00:09.2]} 81... Ka8 {[%clk 0:00:08.2]} 82. b7+ {[%clk 0:00:08.2]} 82...
Kb8 {[%clk 0:00:08.6]} 83. c7+ {[%clk 0:00:08.8]} 83... Kxc7 {[%clk 0:00:08.7]}
84. Ka7 {[%clk 0:00:09.7]} 84... Kd6 {[%clk 0:00:07.6]} 85. b8=Q+ {[%clk
0:00:09.9]} 85... Kc5 {[%clk 0:00:08.5]} 86. Qb6+ {[%clk 0:00:09.8]} 1-0

[Event "Late-Titled-Tuesday-Blitz-January-23-2024"]
[Site "Chess.com"]
[Date "2024.01.23"]
[Round "7"]
[White "Bkmzzzzz"]
[Black "Nouali_Mohamed"]
[Result "0-1"]
[WhiteElo "2419"]
[BlackElo "2551"]
[TimeControl "180+1"]
[EndTime "15:17:01 PST"]
[Termination "Nouali_Mohamed won by checkmate"]

1. e4 {[%clk 0:03:00.9]} 1... c5 {[%clk 0:02:58.6]} 2. Nf3 {[%clk 0:03:00.6]}
2... Nc6 {[%clk 0:02:59.1]} 3. Bb5 {[%clk 0:03:00]} 3... Qc7 {[%clk 0:02:59.4]}
4. Nc3 {[%clk 0:02:54.5]} 4... e6 {[%clk 0:02:59.1]} 5. O-O {[%clk 0:02:54.1]}
5... a6 {[%clk 0:02:59.3]} 6. Bxc6 {[%clk 0:02:54]} 6... Qxc6 {[%clk 0:03:00.2]}
7. d4 {[%clk 0:02:54]} 7... cxd4 {[%clk 0:03:01.1]} 8. Nxd4 {[%clk 0:02:54.4]}
8... Qc7 {[%clk 0:03:01.4]} 9. Re1 {[%clk 0:02:47.6]} 9... h5 {[%clk 0:03:01.1]}
10. e5 {[%clk 0:02:45.3]} 10... b5 {[%clk 0:02:55.1]} 11. Bf4 {[%clk 0:02:39.6]}
11... Bb7 {[%clk 0:02:43.9]} 12. Ne4 {[%clk 0:02:33]} 12... h4 {[%clk 0:02:19]}
13. h3 {[%clk 0:02:31.7]} 13... Nh6 {[%clk 0:02:18.6]} 14. a4 {[%clk 0:02:01.5]}
14... b4 {[%clk 0:02:15.8]} 15. Qd2 {[%clk 0:01:45.6]} 15... Bxe4 {[%clk
0:01:21.7]} 16. Rxe4 {[%clk 0:01:44.9]} 16... Bc5 {[%clk 0:01:21.1]} 17. Nb3
{[%clk 0:01:28.7]} 17... Be7 {[%clk 0:01:20.9]} 18. a5 {[%clk 0:00:57.9]} 18...
Nf5 {[%clk 0:01:19.3]} 19. Be3 {[%clk 0:00:56.2]} 19... Rc8 {[%clk 0:01:14.3]}
20. Rc1 {[%clk 0:00:47.4]} 20... O-O {[%clk 0:00:54.6]} 21. Bb6 {[%clk
0:00:46.5]} 21... Qc6 {[%clk 0:00:53.1]} 22. Rg4 {[%clk 0:00:37.2]} 22... d6
{[%clk 0:00:50.3]} 23. exd6 {[%clk 0:00:35]} 23... Qxd6 {[%clk 0:00:49.4]} 24.
Qe2 {[%clk 0:00:30.6]} 24... Bf6 {[%clk 0:00:43.9]} 25. Rd1 {[%clk 0:00:30.1]}
25... Qc6 {[%clk 0:00:41.8]} 26. Rxb4 {[%clk 0:00:21.2]} 26... Qxc2 {[%clk
0:00:40.9]} 27. Rd2 {[%clk 0:00:18.6]} 27... Qb1+ {[%clk 0:00:34]} 28. Kh2
{[%clk 0:00:19.2]} 28... Bg5 {[%clk 0:00:21.8]} 29. Rd1 {[%clk 0:00:18.6]} 29...
Qc2 {[%clk 0:00:21.7]} 30. Nd4 {[%clk 0:00:17.3]} 30... Nxd4 {[%clk 0:00:18.5]}
31. Qxc2 {[%clk 0:00:16.1]} 31... Nxc2 {[%clk 0:00:19.4]} 32. Rb3 {[%clk
0:00:14]} 32... Rc6 {[%clk 0:00:16.1]} 33. Rd7 {[%clk 0:00:14.3]} 33... Bf4+
{[%clk 0:00:12.9]} 34. g3 {[%clk 0:00:14.2]} 34... hxg3+ {[%clk 0:00:12.6]} 35.
fxg3 {[%clk 0:00:15.1]} 35... Be5 {[%clk 0:00:13.2]} 36. Ra7 {[%clk 0:00:15.3]}
36... Nd4 {[%clk 0:00:11.5]} 37. Re3 {[%clk 0:00:14.8]} 37... Rc2+ {[%clk
0:00:09.3]} 38. Kg1 {[%clk 0:00:14.2]} 38... Bf6 {[%clk 0:00:04.9]} 39. Rxa6
{[%clk 0:00:12.5]} 39... Nf5 {[%clk 0:00:05.2]} 40. Rf3 {[%clk 0:00:12.2]} 40...
Rfc8 {[%clk 0:00:05.1]} 41. g4 {[%clk 0:00:12.4]} 41... Nh4 {[%clk 0:00:05]} 42.
Rf2 {[%clk 0:00:12.1]} 42... Rxb2 {[%clk 0:00:04]} 43. Rxb2 {[%clk 0:00:11.9]}
43... Bxb2 {[%clk 0:00:04.9]} 44. Bf2 {[%clk 0:00:11.9]} 44... Nf3+ {[%clk
0:00:05]} 45. Kg2 {[%clk 0:00:12.2]} 45... Ne5 {[%clk 0:00:05.9]} 46. Rb6 {[%clk
0:00:11.8]} 46... Nd3 {[%clk 0:00:05.7]} 47. a6 {[%clk 0:00:12.1]} 47... Nxf2
{[%clk 0:00:05.7]} 48. Rxb2 {[%clk 0:00:12.1]} 48... Nd3 {[%clk 0:00:05.8]} 49.
Rb7 {[%clk 0:00:11.6]} 49... Nc5 {[%clk 0:00:05.8]} 50. Rb6 {[%clk 0:00:10.5]}
50... Ra8 {[%clk 0:00:05.7]} 51. Rc6 {[%clk 0:00:11.1]} 51... Nxa6 {[%clk
0:00:05.5]} 52. Kg3 {[%clk 0:00:11.8]} 52... g6 {[%clk 0:00:05.9]} 53. Kh4
{[%clk 0:00:12.2]} 53... Nb4 {[%clk 0:00:05.7]} 54. Rb6 {[%clk 0:00:11.5]} 54...
Nd5 {[%clk 0:00:05.6]} 55. Rb5 {[%clk 0:00:12.1]} 55... Kg7 {[%clk 0:00:05.6]}
56. Rb7 {[%clk 0:00:10.4]} 56... Ra3 {[%clk 0:00:05.5]} 57. Kg5 {[%clk
0:00:10.6]} 57... Rxh3 {[%clk 0:00:05]} 58. Rxf7+ {[%clk 0:00:10.3]} 58... Kg8
{[%clk 0:00:04.1]} 59. Kxg6 {[%clk 0:00:10.5]} 59... Rh4 {[%clk 0:00:02.9]} 60.
Rg7+ {[%clk 0:00:10.1]} 60... Kf8 {[%clk 0:00:03.3]} 61. Rf7+ {[%clk 0:00:10.7]}
61... Ke8 {[%clk 0:00:03.9]} 62. Ra7 {[%clk 0:00:09.1]} 62... Rxg4+ {[%clk
0:00:03.8]} 63. Kh5 {[%clk 0:00:08.8]} 63... Rg1 {[%clk 0:00:04.3]} 64. Kh4
{[%clk 0:00:07.8]} 64... Rg8 {[%clk 0:00:03.7]} 65. Kh5 {[%clk 0:00:07.9]} 65...
Rg1 {[%clk 0:00:04.1]} 66. Kh4 {[%clk 0:00:08.1]} 66... Ne7 {[%clk 0:00:04.7]}
67. Kh3 {[%clk 0:00:07.6]} 67... Kf7 {[%clk 0:00:04.6]} 68. Kh2 {[%clk
0:00:08.1]} 68... Rg6 {[%clk 0:00:05.5]} 69. Kh3 {[%clk 0:00:08.6]} 69... Kf6
{[%clk 0:00:05.9]} 70. Kh4 {[%clk 0:00:09.2]} 70... Nf5+ {[%clk 0:00:06.8]} 71.
Kh3 {[%clk 0:00:09.6]} 71... e5 {[%clk 0:00:06.1]} 72. Ra6+ {[%clk 0:00:07.9]}
72... Kg5 {[%clk 0:00:06.4]} 73. Ra5 {[%clk 0:00:07.8]} 73... Kf4 {[%clk
0:00:06.5]} 74. Ra4+ {[%clk 0:00:07.6]} 74... e4 {[%clk 0:00:06.9]} 75. Kh2
{[%clk 0:00:08.1]} 75... Rh6+ {[%clk 0:00:06.9]} 76. Kg2 {[%clk 0:00:08.5]}
76... Ne3+ {[%clk 0:00:06.8]} 77. Kf2 {[%clk 0:00:08.3]} 77... Ng4+ {[%clk
0:00:07.7]} 78. Kg1 {[%clk 0:00:08.7]} 78... Rh2 {[%clk 0:00:07.4]} 79. Rb4
{[%clk 0:00:07.5]} 79... Ra2 {[%clk 0:00:07.7]} 80. Kh1 {[%clk 0:00:07]} 80...
Kg3 {[%clk 0:00:07.2]} 81. Rb3+ {[%clk 0:00:06.7]} 81... e3 {[%clk 0:00:07.6]}
82. Rb1 {[%clk 0:00:06.7]} 82... Nf2+ {[%clk 0:00:06.6]} 83. Kg1 {[%clk
0:00:05.8]} 83... Nh3+ {[%clk 0:00:07.5]} 84. Kh1 {[%clk 0:00:06.3]} 84... Rh2#
{[%clk 0:00:07.3]} 0-1

[Event "Late-Titled-Tuesday-Blitz-January-23-2024"]
[Site "Chess.com"]
[Date "2024.01.23"]
[Round "8"]
[White "vugarrasulov"]
[Black "Jospem"]
[Result "1/2-1/2"]
[WhiteElo "2943"]
[BlackElo "3087"]
[TimeControl "180+1"]
[EndTime "15:20:16 PST"]
[Termination "Game drawn by repetition"]

1. e4 {[%clk 0:03:00.9]} 1... c5 {[%clk 0:02:59.5]} 2. Nf3 {[%clk 0:03:00.2]}
2... d6 {[%clk 0:03:00.2]} 3. d4 {[%clk 0:02:58.9]} 3... cxd4 {[%clk 0:03:01.1]}
4. Nxd4 {[%clk 0:02:59.6]} 4... Nf6 {[%clk 0:03:01.1]} 5. Nc3 {[%clk 0:03:00.3]}
5... Nc6 {[%clk 0:03:01.8]} 6. Bc4 {[%clk 0:02:59.2]} 6... Qb6 {[%clk
0:03:00.9]} 7. Be3 {[%clk 0:02:58.1]} 7... Qa5 {[%clk 0:02:32.6]} 8. O-O {[%clk
0:02:52.7]} 8... Bd7 {[%clk 0:02:32.1]} 9. Nd5 {[%clk 0:02:44.1]} 9... e6 {[%clk
0:02:25.5]} 10. Nxf6+ {[%clk 0:02:34.1]} 10... gxf6 {[%clk 0:02:26.4]} 11. Nb5
{[%clk 0:02:23.8]} 11... Ne5 {[%clk 0:02:20.4]} 12. Bd2 {[%clk 0:02:10.3]} 12...
Qb6 {[%clk 0:02:20.4]} 13. Be3 {[%clk 0:02:10.6]} 13... Qa5 {[%clk 0:02:15.5]}
14. Bd2 {[%clk 0:02:09.9]} 14... Qb6 {[%clk 0:02:07.3]} 15. Be3 {[%clk
0:02:07.2]} 15... Qa5 {[%clk 0:02:07.5]} 1/2-1/2

[Event "Late-Titled-Tuesday-Blitz-January-23-2024"]
[Site "Chess.com"]
[Date "2024.01.23"]
[Round "8"]
[White "Kaslask"]
[Black "Horokoskii"]
[Result "1-0"]
[WhiteElo "2292"]
[BlackElo "2083"]
[TimeControl "180+1"]
[EndTime "15:20:23 PST"]
[Termination "Kaslask won by resignation"]

1. d4 {[%clk 0:02:33.5]} 1... Nf6 {[%clk 0:02:58.7]} 2. c4 {[%clk 0:02:32.8]}
2... c5 {[%clk 0:02:59.1]} 3. Nf3 {[%clk 0:02:29.2]} 3... cxd4 {[%clk 0:02:58]}
4. Nxd4 {[%clk 0:02:28.4]} 4... e6 {[%clk 0:02:58.6]} 5. g3 {[%clk 0:02:28.5]}
5... Nc6 {[%clk 0:02:58.3]} 6. Bg2 {[%clk 0:02:27.5]} 6... Bc5 {[%clk
0:02:58.1]} 7. Nb3 {[%clk 0:02:26.5]} 7... Bb6 {[%clk 0:02:57.7]} 8. O-O {[%clk
0:02:26.2]} 8... h6 {[%clk 0:02:54.1]} 9. c5 {[%clk 0:02:25.4]} 9... Bc7 {[%clk
0:02:53.7]} 10. Nc3 {[%clk 0:02:25.2]} 10... O-O {[%clk 0:02:53]} 11. Nb5 {[%clk
0:02:19.1]} 11... b6 {[%clk 0:02:53]} 12. Nxc7 {[%clk 0:02:18.2]} 12... Qxc7
{[%clk 0:02:53.3]} 13. Bf4 {[%clk 0:02:16.8]} 13... e5 {[%clk 0:02:51.5]} 14.
Be3 {[%clk 0:02:16.9]} 14... bxc5 {[%clk 0:02:46.3]} 15. Bxc5 {[%clk 0:02:15.3]}
15... Re8 {[%clk 0:02:43.9]} 16. Bd6 {[%clk 0:02:13.9]} 16... Qb6 {[%clk
0:02:39.7]} 17. Rc1 {[%clk 0:02:13.4]} 17... Bb7 {[%clk 0:02:38.5]} 18. Bc5
{[%clk 0:02:12.6]} 18... Qc7 {[%clk 0:02:37.6]} 19. Qd6 {[%clk 0:02:08.8]} 19...
Qxd6 {[%clk 0:02:34.3]} 20. Bxd6 {[%clk 0:02:06.7]} 20... Re6 {[%clk 0:02:33.3]}
21. Ba3 {[%clk 0:02:04.9]} 21... d5 {[%clk 0:02:31.8]} 22. Nc5 {[%clk
0:02:04.5]} 22... Re7 {[%clk 0:02:27.2]} 23. Nxb7 {[%clk 0:02:03.9]} 23... Rxb7
{[%clk 0:02:28.1]} 24. Rxc6 {[%clk 0:02:03.2]} 1-0

[Event "Late-Titled-Tuesday-Blitz-January-23-2024"]
[Site "Chess.com"]
[Date "2024.01.23"]
[Round "8"]
[White "traviscottofficial"]
[Black "BeanScreen"]
[Result "0-1"]
[WhiteElo "2533"]
[BlackElo "2728"]
[TimeControl "180+1"]
[EndTime "15:21:53 PST"]
[Termination "BeanScreen won by resignation"]

1. e4 {[%clk 0:03:00.9]} 1... e5 {[%clk 0:02:59.7]} 2. Nf3 {[%clk 0:03:00.1]}
2... Nc6 {[%clk 0:02:59.5]} 3. d4 {[%clk 0:02:58.1]} 3... exd4 {[%clk
0:02:59.3]} 4. Nxd4 {[%clk 0:02:58.7]} 4... Bc5 {[%clk 0:02:58.8]} 5. Nxc6
{[%clk 0:02:57.2]} 5... Qf6 {[%clk 0:02:58.5]} 6. Qf3 {[%clk 0:02:57.9]} 6...
bxc6 {[%clk 0:02:58.4]} 7. Nd2 {[%clk 0:02:49.8]} 7... d6 {[%clk 0:02:56.8]} 8.
Nb3 {[%clk 0:02:48.6]} 8... Qxf3 {[%clk 0:02:56]} 9. gxf3 {[%clk 0:02:48.4]}
9... Bb6 {[%clk 0:02:56.9]} 10. a4 {[%clk 0:02:48.3]} 10... a5 {[%clk
0:02:56.3]} 11. Be3 {[%clk 0:02:47.9]} 11... Bxe3 {[%clk 0:02:55]} 12. fxe3
{[%clk 0:02:47.9]} 12... Ne7 {[%clk 0:02:55.9]} 13. O-O-O {[%clk 0:02:47]} 13...
O-O {[%clk 0:02:55.3]} 14. f4 {[%clk 0:02:43.9]} 14... c5 {[%clk 0:02:21.5]} 15.
e5 {[%clk 0:02:39.3]} 15... dxe5 {[%clk 0:02:11.2]} 16. fxe5 {[%clk 0:02:21]}
16... Ng6 {[%clk 0:02:09.8]} 17. Bg2 {[%clk 0:02:16.6]} 17... Rb8 {[%clk
0:02:05.6]} 18. Nxa5 {[%clk 0:02:14.2]} 18... Nxe5 {[%clk 0:02:05.4]} 19. Rd5
{[%clk 0:02:13.3]} 19... Ng4 {[%clk 0:02:00.4]} 20. Nc6 {[%clk 0:02:08.9]} 20...
Ra8 {[%clk 0:01:44.6]} 21. Ne7+ {[%clk 0:01:53.8]} 21... Kh8 {[%clk 0:01:44.5]}
22. Nxc8 {[%clk 0:01:53.6]} 22... Nxe3 {[%clk 0:01:43.6]} 23. Rxc5 {[%clk
0:01:48.4]} 23... Nxg2 {[%clk 0:01:42.3]} 24. Ne7 {[%clk 0:01:46.2]} 24... Rxa4
{[%clk 0:01:41.9]} 25. Rd1 {[%clk 0:01:32.8]} 25... Ra1+ {[%clk 0:01:41.4]} 26.
Kd2 {[%clk 0:01:32.6]} 26... Rd8+ {[%clk 0:01:42.3]} 27. Rd5 {[%clk 0:01:28.5]}
27... Rxd1+ {[%clk 0:01:41.7]} 0-1

[Event "Late-Titled-Tuesday-Blitz-January-23-2024"]
[Site "Chess.com"]
[Date "2024.01.23"]
[Round "8"]
[White "rikchessmx"]
[Black "nindjaxx8"]
[Result "0-1"]
[WhiteElo "2409"]
[BlackElo "2621"]
[TimeControl "180+1"]
[EndTime "15:22:11 PST"]
[Termination "nindjaxx8 won by resignation"]

1. e4 {[%clk 0:03:00.9]} 1... e6 {[%clk 0:02:51]} 2. d4 {[%clk 0:03:00.3]} 2...
d5 {[%clk 0:02:51.9]} 3. Nc3 {[%clk 0:03:00.5]} 3... Bb4 {[%clk 0:02:50.7]} 4.
e5 {[%clk 0:03:00.1]} 4... c5 {[%clk 0:02:48.9]} 5. a3 {[%clk 0:03:00.5]} 5...
Bxc3+ {[%clk 0:02:49]} 6. bxc3 {[%clk 0:03:01.4]} 6... Ne7 {[%clk 0:02:49.7]} 7.
Qg4 {[%clk 0:03:00.4]} 7... Qc7 {[%clk 0:02:50.2]} 8. Qxg7 {[%clk 0:03:00.6]}
8... Rg8 {[%clk 0:02:50.8]} 9. Qxh7 {[%clk 0:03:01.2]} 9... cxd4 {[%clk
0:02:51.5]} 10. Ne2 {[%clk 0:03:01.4]} 10... Nbc6 {[%clk 0:02:50.5]} 11. f4
{[%clk 0:03:01.6]} 11... dxc3 {[%clk 0:02:50.5]} 12. Qd3 {[%clk 0:03:02]} 12...
d4 {[%clk 0:02:50.9]} 13. Nxd4 {[%clk 0:03:01.5]} 13... Nxd4 {[%clk 0:02:51.6]}
14. Qxd4 {[%clk 0:03:02]} 14... Bd7 {[%clk 0:02:50.7]} 15. Be3 {[%clk 0:03:01]}
15... Nf5 {[%clk 0:02:47.4]} 16. Qc5 {[%clk 0:02:55.7]} 16... Qxc5 {[%clk
0:02:23.9]} 17. Bxc5 {[%clk 0:02:54.8]} 17... Bc6 {[%clk 0:02:24.7]} 18. Kf2
{[%clk 0:02:54.1]} 18... Rd8 {[%clk 0:02:23.1]} 19. Bd6 {[%clk 0:02:44.8]} 19...
Nxd6 {[%clk 0:02:17.7]} 20. exd6 {[%clk 0:02:43.4]} 20... Rxd6 {[%clk
0:02:18.6]} 21. Ke3 {[%clk 0:02:33.7]} 21... Rd2 {[%clk 0:02:17.6]} 22. Bd3
{[%clk 0:02:30.8]} 22... Rgxg2 {[%clk 0:02:07.7]} 23. Kd4 {[%clk 0:02:29]} 23...
Rxh2 {[%clk 0:01:35.2]} 24. Rxh2 {[%clk 0:02:27.3]} 24... Rxh2 {[%clk
0:01:36.1]} 25. Kxc3 {[%clk 0:02:26.3]} 25... Rf2 {[%clk 0:01:36.7]} 26. f5
{[%clk 0:02:25.7]} 26... exf5 {[%clk 0:01:36.4]} 27. Kd4 {[%clk 0:02:25.3]}
27... f4 {[%clk 0:01:35.7]} 28. Re1+ {[%clk 0:02:22.1]} 28... Kf8 {[%clk
0:01:34.2]} 29. c4 {[%clk 0:02:06.4]} 29... Ra2 {[%clk 0:01:23.9]} 30. Rf1
{[%clk 0:02:02.9]} 30... f3 {[%clk 0:01:23.2]} 31. Be4 {[%clk 0:02:02.1]} 31...
Bxe4 {[%clk 0:01:19.8]} 32. Kxe4 {[%clk 0:02:01.8]} 32... Rxa3 {[%clk
0:01:20.5]} 33. Kd5 {[%clk 0:02:01.1]} 33... Kg7 {[%clk 0:01:19.1]} 34. Kd6
{[%clk 0:02:01.2]} 34... Kf6 {[%clk 0:01:19.3]} 35. Kc7 {[%clk 0:02:01.2]} 35...
b6 {[%clk 0:01:19]} 36. Kb7 {[%clk 0:01:57.2]} 36... Kf5 {[%clk 0:01:19.1]} 0-1

[Event "Late-Titled-Tuesday-Blitz-January-23-2024"]
[Site "Chess.com"]
[Date "2024.01.23"]
[Round "8"]
[White "gxbg2000"]
[Black "UnTucopalaTimba"]
[Result "1-0"]
[WhiteElo "2133"]
[BlackElo "1930"]
[TimeControl "180+1"]
[EndTime "15:22:47 PST"]
[Termination "gxbg2000 won by resignation"]

1. e4 {[%clk 0:02:54.9]} 1... c6 {[%clk 0:02:59.7]} 2. Nf3 {[%clk 0:02:54.5]}
2... d5 {[%clk 0:02:59.9]} 3. exd5 {[%clk 0:02:55.4]} 3... cxd5 {[%clk
0:02:59.9]} 4. d4 {[%clk 0:02:56.3]} 4... Bg4 {[%clk 0:02:58.9]} 5. h3 {[%clk
0:02:56.7]} 5... Bh5 {[%clk 0:02:58.9]} 6. Be2 {[%clk 0:02:56.6]} 6... Nc6
{[%clk 0:02:58.6]} 7. O-O {[%clk 0:02:57.3]} 7... Nf6 {[%clk 0:02:58]} 8. c3
{[%clk 0:02:57.9]} 8... e6 {[%clk 0:02:57.5]} 9. Re1 {[%clk 0:02:58.4]} 9... Be7
{[%clk 0:02:57.4]} 10. Bf4 {[%clk 0:02:57.6]} 10... a6 {[%clk 0:02:56.6]} 11. a4
{[%clk 0:02:56.9]} 11... O-O {[%clk 0:02:54.8]} 12. Nbd2 {[%clk 0:02:57]} 12...
Qb6 {[%clk 0:02:51.4]} 13. Qc1 {[%clk 0:02:46.2]} 13... Rac8 {[%clk 0:02:39]}
14. Be3 {[%clk 0:02:45.7]} 14... Bg6 {[%clk 0:02:30.9]} 15. Ne5 {[%clk
0:02:42.1]} 15... Qd8 {[%clk 0:02:22.7]} 16. Nxg6 {[%clk 0:02:39.8]} 16... hxg6
{[%clk 0:02:21.6]} 17. Bd3 {[%clk 0:02:35.7]} 17... Na5 {[%clk 0:02:18]} 18. Qd1
{[%clk 0:02:30.3]} 18... Qb6 {[%clk 0:02:16.1]} 19. Rb1 {[%clk 0:02:26.1]} 19...
Qc6 {[%clk 0:02:04.4]} 20. Qe2 {[%clk 0:02:19.8]} 20... Qxa4 {[%clk 0:02:00.7]}
21. Ra1 {[%clk 0:02:08.4]} 21... Qc6 {[%clk 0:01:50.6]} 22. Rxa5 {[%clk
0:02:07.3]} 22... b5 {[%clk 0:01:47.8]} 23. Rea1 {[%clk 0:02:01.1]} 23... Ra8
{[%clk 0:01:46.3]} 24. Bf4 {[%clk 0:01:42.8]} 24... b4 {[%clk 0:01:41.1]} 25.
Nb1 {[%clk 0:01:39.3]} 25... bxc3 {[%clk 0:01:37.3]} 26. Nxc3 {[%clk 0:01:37.4]}
26... Qb6 {[%clk 0:01:27.2]} 27. Rxa6 {[%clk 0:01:35]} 27... Rxa6 {[%clk
0:01:26.9]} 28. Rxa6 {[%clk 0:01:34.9]} 28... Qxd4 {[%clk 0:01:25.9]} 29. Be5
{[%clk 0:01:33.9]} 29... Qb4 {[%clk 0:01:22.3]} 30. Ra7 {[%clk 0:01:28.7]} 30...
Bc5 {[%clk 0:01:20.4]} 31. Ra4 {[%clk 0:01:24.2]} 31... Qb6 {[%clk 0:01:14.5]}
32. Ra2 {[%clk 0:01:19.7]} 32... Bxf2+ {[%clk 0:01:13.3]} 33. Qxf2 {[%clk
0:01:18.5]} 1-0

[Event "Late-Titled-Tuesday-Blitz-January-23-2024"]
[Site "Chess.com"]
[Date "2024.01.23"]
[Round "8"]
[White "IsaqueGoncalvesSanto"]
[Black "PawnEatingZombie"]
[Result "0-1"]
[WhiteElo "1787"]
[BlackElo "2107"]
[TimeControl "180+1"]
[EndTime "15:23:04 PST"]
[Termination "PawnEatingZombie won on time"]

1. d4 {[%clk 0:02:56.7]} 1... Nf6 {[%clk 0:02:59.3]} 2. c4 {[%clk 0:02:56.5]}
2... g6 {[%clk 0:02:59.6]} 3. Nc3 {[%clk 0:02:56.3]} 3... Bg7 {[%clk 0:03:00.3]}
4. e4 {[%clk 0:02:56.2]} 4... d6 {[%clk 0:03:00.9]} 5. f3 {[%clk 0:02:56.6]}
5... O-O {[%clk 0:03:00.7]} 6. Be3 {[%clk 0:02:57.1]} 6... Nc6 {[%clk
0:03:00.8]} 7. Qd2 {[%clk 0:02:57.2]} 7... a6 {[%clk 0:03:00]} 8. Nge2 {[%clk
0:02:45.5]} 8... Na5 {[%clk 0:02:52.4]} 9. Ng3 {[%clk 0:02:44.4]} 9... c5 {[%clk
0:02:38.8]} 10. dxc5 {[%clk 0:02:10.3]} 10... Nd7 {[%clk 0:02:19.1]} 11. cxd6
{[%clk 0:02:08.7]} 11... exd6 {[%clk 0:02:18.7]} 12. Qxd6 {[%clk 0:02:06.3]}
12... Qh4 {[%clk 0:01:32.6]} 13. Be2 {[%clk 0:01:26.5]} 13... Be5 {[%clk
0:01:25.3]} 14. Qd5 {[%clk 0:01:21.9]} 14... Bxg3+ {[%clk 0:01:24.8]} 0-1